[Event "Krakow Championship-C 2022"]
[Site "Krakow"]
[Date "2022.06.28"]
[Round "5.3"]
[White "Lesniak, Wojciech"]
[Black "Kuznik, Kamil"]
[Result "0-1"]
[ECO "D97"]
[WhiteElo "1368"]
[BlackElo "1456"]
[Annotator "NA RC"]
[PlyCount "100"]
[EventDate "2022.06.25"]
[EventType "swiss"]
[EventCountry "POL"]
[SourceTitle "playchess.com"]
[Source "ChessBase"]
[SourceQuality "1"]
[TimeControl "5400+30"]

1. d4 {[%emt 0:00:06]} Nf6 {[%emt 0:00:06]} 2. c4 {[%emt 0:00:11]} g6 {[%emt 0:00:06]} 3. Nc3 {[%emt 0:00:09]} d5 {[%emt 0:00:04]} 4. Nf3 {[%emt 0:00:32]} Bg7 {[%emt 0:00:10]} 5. Qb3 {[%emt 0:00:39]} dxc4 {[%emt 0:00:18]} 6. Qxc4 {[%emt 0:00:07]} O-O {[%emt 0:01:01]} 7. e4 {[%emt 0:00:24]} c6 {[%emt 0:02:49]} 8. Be3 {[%emt 0:02:52]} b5 {[%emt 0:05:18]} 9. Qb3 {[%emt 0:01:52]} a5 {[%emt 0:04:23]} 10. a3 {[%emt 0:03:32]} Na6 {[%emt 0:02:54]} 11. Qc2 {[%emt 0:10:19]} Qc7 {[%emt 0:15:00]} 12. Be2 {[%emt 0:04:46]} h6 {[%emt 0:16:53]} 13. O-O {[%emt 0:00:59]} Ng4 {[%emt 0:00:26]} 14. Rac1 {[%emt 0:01:48]} Nxe3 {[%emt 0:01:31]} 15. fxe3 {[%emt 0:00:15]} Qd8 {[%emt 0:04:20]} 16. Rfd1 {[%emt 0:09:00]} Bb7 {[%emt 0:06:45]} 17. d5 {[%emt 0:06:30]} Qb6 {[%emt 0:02:10]} 18. Nd4 {[%emt 0:05:44]} Rac8 {[%emt 0:10:07]} 19. Qd2 {[%emt 0:06:57]} Nc5 {[%emt 0:01:30]} 20. b4 {[%emt 0:09:14]} axb4 {[%emt 0:02:09]} 21. axb4 {[%emt 0:00:08]} Na6 {[%emt 0:00:21]} 22. dxc6 {[%emt 0:07:48]} Bxd4 {[%emt 0:05:14]} 23. Qxd4 {[%emt 0:07:56]} Qxd4 {[%emt 0:03:18]} 24. exd4 {[%emt 0:02:45]} Bxc6 {[%emt 0:00:12]} 25. d5 {[%emt 0:00:39]} Bd7 {[%emt 0:00:18]} 26. Nxb5 {[%emt 0:05:02]} Nxb4 {[%emt 0:03:49]} 27. Nd4 {[%emt 0:00:43]} Na2 {[%emt 0:00:29]} 28. Rxc8 {[%emt 0:02:44]} Rxc8 {[%emt 0:00:10]} 29. Ra1 {[%emt 0:00:50]} Nc3 {[%emt 0:03:08]} 30. Bd3 {[%emt 0:00:07]} Na4 {[%emt 0:01:38]} 31. Kf2 {[%emt 0:03:08]} Nc5 {[%emt 0:00:59]} 32. Ke3 {[%emt 0:00:52]} Nxd3 {[%emt 0:01:09]} 33. Kxd3 {[%emt 0:00:42]} e5 {[%emt 0:03:14]} 34. Ra7 {[%emt 0:01:43]} Be8 {[%emt 0:01:42]} 35. Re7 {[%emt 0:00:28]} exd4 {[%emt 0:00:34]} 36. Kxd4 {[%emt 0:00:30]} Kf8 {[%emt 0:00:55]} 37. d6 {[%emt 0:00:30]} Rc2 {[%emt 0:01:12]} 38. Ke5 {[%emt 0:01:39]} Rxg2 {[%emt 0:00:56]} 39. Rc7 {[%emt 0:01:01]} Rd2 {[%emt 0:01:00]} 40. Rc3 {[%emt 0:03:41]} Rxh2 {[%emt 0:01:05]} 41. Rd3 {[%emt 0:00:20]} Bd7 {[%emt 0:00:28]} 42. Kd5 {[%emt 0:00:50]} Rh5+ {[%emt 0:00:32]} 43. Kd4 {[%emt 0:00:40]} Rb5 {[%emt 0:00:26]} 44. Ra3 {[%emt 0:00:46]} Rb8 {[%emt 0:00:34]} 45. Ke5 {[%emt 0:00:49]} h5 {[%emt 0:00:17]} 46. Ra7 {[%emt 0:00:35]} Be6 {[%emt 0:00:50]} 47. Kf6 {[%emt 0:00:25]} Ke8 {[%emt 0:00:29]} 48. e5 {[%emt 0:00:24]} h4 {[%emt 0:00:26]} 49. Re7+ {[%emt 0:00:47]} Kd8 {[%emt 0:00:15]} 50. d7 {[%emt 0:00:15]} Rb6 {[%emt 0:00:40]} 0-1

[Event "Krakow Championship-C 2022"]
[Site "Krakow"]
[Date "2022.06.28"]
[Round "5.4"]
[White "Piddubna, Bozhena"]
[Black "Krasuski, Pawel"]
[Result "1-0"]
[ECO "D11"]
[WhiteElo "1534"]
[BlackElo "1682"]
[Annotator "NA RC"]
[PlyCount "56"]
[EventDate "2022.06.25"]
[EventType "swiss"]
[EventCountry "POL"]
[SourceTitle "playchess.com"]
[Source "ChessBase"]
[SourceQuality "1"]
[TimeControl "5400+30"]

1. c4 c6 {[%emt 0:01:20]} 2. d4 {[%emt 0:00:42]} d5 3. Nf3 {[%emt 0:00:18]} e6 {[%emt 0:00:48]} 4. g3 {[%emt 0:00:12]} dxc4 {[%emt 0:02:13]} 5. Bg2 {[%emt 0:01:08]} Nd7 {[%emt 0:01:38]} 6. O-O {[%emt 0:00:59]} Ngf6 {[%emt 0:01:27]} 7. Nbd2 {[%emt 0:01:38]} b5 {[%emt 0:00:09]} 8. a4 {[%emt 0:04:54]} Bb7 9. Ne5 {[%emt 0:00:08]} Nxe5 {[%emt 0:01:21]} 10. dxe5 {[%emt 0:00:38]} Nd5 {[%emt 0:00:02]} 11. Ne4 {[%emt 0:01:42]} Be7 {[%emt 0:00:48]} 12. Nd6+ {[%emt 0:00:09]} Bxd6 {[%emt 0:01:28]} 13. exd6 {[%emt 0:02:17]} O-O {[%emt 0:00:57]} 14. e4 {[%emt 0:01:34]} Nb4 {[%emt 0:00:48]} 15. e5 {[%emt 0:12:43]} Qd7 {[%emt 0:01:40]} 16. Be4 {[%emt 0:08:56]} c5 {[%emt 0:02:27]} 17. Qf3 {[%emt 0:05:07]} Bd5 {[%emt 0:02:28]} 18. Bd2 {[%emt 0:01:30]} f6 {[%emt 0:01:55]} 19. Bxb4 {[%emt 0:06:22]} fxe5 {[%emt 0:01:32]} 20. Qe3 {[%emt 0:12:11]} Bxe4 {[%emt 0:00:18]} 21. Qxe4 {[%emt 0:01:02]} cxb4 {[%emt 0:04:51]} 22. Rad1 {[%emt 0:02:19]} Rac8 {[%emt 0:01:22]} 23. axb5 {[%emt 0:09:31]} Rc5 {[%emt 0:05:45]} 24. Qg4 {[%emt 0:03:14]} Rfc8 {[%emt 0:02:28]} 25. Ra1 {[%emt 0:00:35]} Rxb5 {[%emt 0:02:24]} 26. Rxa7 Rb7 {[%emt 0:00:06]} 27. Rxb7 {[%emt 0:00:52]} Qxb7 {[%emt 0:00:07]} 28. Qxe6+ Kf8 1-0

[Event "Krakow Championship-C 2022"]
[Site "Krakow"]
[Date "2022.06.28"]
[Round "5.5"]
[White "Diachek, Andriy"]
[Black "Grzelak, Piotr"]
[Result "1-0"]
[ECO "C05"]
[WhiteElo "1451"]
[BlackElo "1684"]
[Annotator "NA RC"]
[PlyCount "69"]
[EventDate "2022.06.25"]
[EventType "swiss"]
[EventCountry "POL"]
[SourceTitle "playchess.com"]
[Source "ChessBase"]
[SourceQuality "1"]
[TimeControl "5400+30"]

1. e4 {[%emt 0:00:04]} e6 {[%emt 0:00:06]} 2. d4 {[%emt 0:00:05]} d5 {[%emt 0:00:07]} 3. Nd2 {[%emt 0:00:06]} Nf6 {[%emt 0:00:07]} 4. e5 {[%emt 0:00:04]} Nfd7 {[%emt 0:00:08]} 5. f4 {[%emt 0:00:06]} c5 {[%emt 0:00:14]} 6. c3 {[%emt 0:00:06]} Nc6 {[%emt 0:00:32]} 7. Ndf3 {[%emt 0:00:10]} Qb6 {[%emt 0:04:42]} 8. g3 {[%emt 0:00:28]} cxd4 {[%emt 0:00:37]} 9. cxd4 {[%emt 0:00:11]} Bb4+ {[%emt 0:03:54]} 10. Kf2 {[%emt 0:00:16]} a5 {[%emt 0:04:50]} 11. a4 {[%emt 0:02:12]} O-O {[%emt 0:00:56]} 12. Kg2 {[%emt 0:00:29]} Qd8 {[%emt 0:07:42]} 13. Bd3 {[%emt 0:00:47]} f6 {[%emt 0:02:19]} 14. Ne2 {[%emt 0:00:43]} b6 {[%emt 0:01:00]} 15. Qc2 {[%emt 0:03:22]} Ne7 {[%emt 0:03:43]} 16. Bxh7+ {[%emt 0:02:28]} Kh8 {[%emt 0:00:20]} 17. Bd3 {[%emt 0:02:39]} Ba6 {[%emt 0:01:01]} 18. Bxa6 {[%emt 0:00:39]} Rxa6 {[%emt 0:00:08]} 19. Bd2 {[%emt 0:03:12]} Bxd2 {[%emt 0:04:05]} 20. Qxd2 {[%emt 0:00:57]} Nf5 {[%emt 0:00:22]} 21. Nc3 {[%emt 0:05:27]} Qe8 {[%emt 0:01:00]} 22. Nb5 {[%emt 0:05:23]} Qg6 {[%emt 0:01:15]} 23. Rac1 {[%emt 0:08:42]} Raa8 {[%emt 0:01:02]} 24. Rc7 {[%emt 0:02:47]} Rac8 {[%emt 0:00:14]} 25. Rhc1 {[%emt 0:02:03]} Rxc7 {[%emt 0:01:05]} 26. Rxc7 {[%emt 0:00:41]} fxe5 {[%emt 0:03:01]} 27. fxe5 {[%emt 0:02:17]} Nb8 {[%emt 0:04:02]} 28. Qg5 {[%emt 0:03:13]} Qxg5 {[%emt 0:00:46]} 29. Nxg5 {[%emt 0:00:27]} Ne3+ {[%emt 0:00:02]} 30. Kh3 {[%emt 0:00:26]} Na6 {[%emt 0:00:10]} 31. Rb7 {[%emt 0:09:43]} Nb4 {[%emt 0:03:00]} 32. Nd6 {[%emt 0:04:31]} Nd3 {[%emt 0:00:32]} 33. Nxe6 {[%emt 0:02:46]} g5 {[%emt 0:03:11]} 34. Nxg5 {[%emt 0:01:12]} Rg8 {[%emt 0:00:52]} 35. Rh7# {[%emt 0:00:13]} 1-0

[Event "Krakow Championship-C 2022"]
[Site "Krakow"]
[Date "2022.06.28"]
[Round "5.6"]
[White "Pawlak, Emilia"]
[Black "Ralowski, Mateusz"]
[Result "1-0"]
[ECO "A36"]
[WhiteElo "1477"]
[BlackElo "1465"]
[Annotator "NA RC"]
[PlyCount "85"]
[EventDate "2022.06.25"]
[EventType "swiss"]
[EventCountry "POL"]
[SourceTitle "playchess.com"]
[Source "ChessBase"]
[SourceQuality "1"]
[TimeControl "5400+30"]

1. c4 {[%emt 0:00:03]} c5 {[%emt 0:00:03]} 2. Nc3 {[%emt 0:00:09]} Nc6 {[%emt 0:00:07]} 3. g3 {[%emt 0:00:06]} g6 {[%emt 0:00:13]} 4. Bg2 {[%emt 0:00:10]} Bg7 {[%emt 0:00:05]} 5. d3 {[%emt 0:00:29]} d6 {[%emt 0:00:44]} 6. e4 {[%emt 0:00:06]} e6 {[%emt 0:01:10]} 7. Nge2 {[%emt 0:00:04]} Nge7 {[%emt 0:00:23]} 8. O-O {[%emt 0:00:10]} O-O {[%emt 0:00:04]} 9. Be3 {[%emt 0:00:26]} a6 {[%emt 0:06:31]} 10. a4 {[%emt 0:02:17]} Nd4 {[%emt 0:03:56]} 11. Rb1 {[%emt 0:02:40]} Nec6 {[%emt 0:03:00]} 12. f4 {[%emt 0:02:24]} Rb8 {[%emt 0:05:46]} 13. Kh1 {[%emt 0:09:35]} Bd7 {[%emt 0:04:29]} 14. g4 {[%emt 0:04:44]} f5 {[%emt 0:19:40]} 15. exf5 {[%emt 0:09:42]} exf5 {[%emt 0:00:33]} 16. g5 {[%emt 0:02:52]} Re8 {[%emt 0:03:51]} 17. Bf2 {[%emt 0:02:59]} b5 {[%emt 0:08:41]} 18. axb5 {[%emt 0:07:12]} axb5 {[%emt 0:01:15]} 19. cxb5 {[%emt 0:01:03]} Nxb5 {[%emt 0:01:24]} 20. Nxb5 {[%emt 0:00:21]} Rxb5 {[%emt 0:00:24]} 21. d4 {[%emt 0:00:30]} Rb4 {[%emt 0:14:14]} 22. dxc5 {[%emt 0:07:35]} dxc5 {[%emt 0:03:07]} 23. Bd5+ {[%emt 0:03:14]} Kh8 {[%emt 0:02:10]} 24. Bxc5 {[%emt 0:02:53]} Rxb2 {[%emt 0:08:15]} 25. Rxb2 {[%emt 0:06:48]} Bxb2 {[%emt 0:00:02]} 26. Qd2 {[%emt 0:00:56]} Bg7 {[%emt 0:01:52]} 27. Rd1 {[%emt 0:00:44]} Na5 {[%emt 0:06:32]} 28. Bd4 {[%emt 0:04:25]} Re7 {[%emt 0:01:43]} 29. Kg1 {[%emt 0:02:30]} Ba4 {[%emt 0:02:03]} 30. Ra1 {[%emt 0:03:42]} Rxe2 {[%emt 0:01:26]} 31. Bxg7+ {[%emt 0:02:07]} Kxg7 {[%emt 0:00:03]} 32. Qxe2 {[%emt 0:02:19]} Qxd5 {[%emt 0:00:39]} 33. Rxa4 {[%emt 0:00:43]} Qc5+ {[%emt 0:00:29]} 34. Kf1 {[%emt 0:00:38]} Qc1+ {[%emt 0:00:44]} 35. Kf2 {[%emt 0:00:05]} Qc5+ {[%emt 0:00:33]} 36. Kg3 {[%emt 0:00:52]} Qg1+ {[%emt 0:01:39]} 37. Kh4 {[%emt 0:01:45]} Nc6 {[%emt 0:00:29]} 38. Qb2+ {[%emt 0:05:55]} Kf8 {[%emt 0:00:14]} 39. Qf6+ {[%emt 0:00:17]} Ke8 {[%emt 0:00:17]} 40. Qxc6+ {[%emt 0:00:12]} Ke7 {[%emt 0:00:12]} 41. Qb7+ {[%emt 0:00:54]} Kd6 {[%emt 0:00:25]} 42. Ra6+ {[%emt 0:00:27]} Kc5 {[%emt 0:00:10]} 43. Qb6+ {[%emt 0:00:08]} 1-0

[Event "Krakow Championship-C 2022"]
[Site "Krakow"]
[Date "2022.06.28"]
[Round "5.7"]
[White "Khimichenko, Dmytro"]
[Black "Olszewski, Antoni"]
[Result "0-1"]
[ECO "B47"]
[WhiteElo "1427"]
[BlackElo "1532"]
[Annotator "NA RC"]
[PlyCount "82"]
[EventDate "2022.06.25"]
[EventType "swiss"]
[EventCountry "POL"]
[SourceTitle "playchess.com"]
[Source "ChessBase"]
[SourceQuality "1"]
[TimeControl "5400+30"]

1. e4 {[%emt 0:00:04]} c5 {[%emt 0:00:24]} 2. Nf3 {[%emt 0:00:06]} e6 {[%emt 0:00:22]} 3. d4 {[%emt 0:00:12]} cxd4 {[%emt 0:00:16]} 4. Nxd4 {[%emt 0:00:06]} Nc6 {[%emt 0:00:33]} 5. Nc3 {[%emt 0:01:08]} Qc7 {[%emt 0:00:27]} 6. Ndb5 {[%emt 0:01:49]} Qb8 {[%emt 0:00:01]} 7. Be3 {[%emt 0:00:34]} Nf6 {[%emt 0:04:09]} 8. Be2 {[%emt 0:02:42]} Be7 {[%emt 0:04:17]} 9. Qd2 {[%emt 0:01:04]} a6 {[%emt 0:03:28]} 10. Nd4 {[%emt 0:05:27]} b5 {[%emt 0:02:19]} 11. f3 {[%emt 0:03:14]} Qc7 {[%emt 0:07:02]} 12. O-O {[%emt 0:02:45]} O-O {[%emt 0:02:23]} 13. a4 {[%emt 0:07:20]} b4 {[%emt 0:07:28]} 14. Nd1 {[%emt 0:00:46]} d5 {[%emt 0:08:15]} 15. Nxc6 {[%emt 0:05:01]} Qxc6 {[%emt 0:00:14]} 16. e5 {[%emt 0:00:37]} Nd7 {[%emt 0:03:59]} 17. f4 {[%emt 0:01:29]} f6 {[%emt 0:04:28]} 18. exf6 {[%emt 0:00:42]} Bxf6 {[%emt 0:05:59]} 19. Ra2 {[%emt 0:04:59]} Rb8 {[%emt 0:03:59]} 20. b3 {[%emt 0:01:00]} Nc5 {[%emt 0:05:23]} 21. Bf3 {[%emt 0:03:09]} Ne4 {[%emt 0:03:23]} 22. Qe1 {[%emt 0:09:23]} a5 {[%emt 0:05:10]} 23. Bxe4 {[%emt 0:05:06]} dxe4 {[%emt 0:00:25]} 24. Rf2 {[%emt 0:00:40]} Ba6 {[%emt 0:02:02]} 25. Rd2 {[%emt 0:01:46]} Rbd8 {[%emt 0:02:02]} 26. Rxd8 {[%emt 0:02:17]} Rxd8 {[%emt 0:00:13]} 27. Nf2 {[%emt 0:00:13]} Bc3 {[%emt 0:04:15]} 28. Qc1 {[%emt 0:01:22]} Qd5 {[%emt 0:04:43]} 29. h3 {[%emt 0:03:06]} Rd6 {[%emt 0:02:12]} 30. g3 {[%emt 0:02:23]} Be2 {[%emt 0:03:38]} 31. Kg2 {[%emt 0:02:33]} Qc6 {[%emt 0:02:32]} 32. Kg1 {[%emt 0:00:58]} h6 {[%emt 0:01:31]} 33. Kh2 {[%emt 0:01:23]} Bf3 {[%emt 0:05:34]} 34. Kg1 {[%emt 0:01:57]} h5 {[%emt 0:00:56]} 35. h4 {[%emt 0:01:35]} Be2 {[%emt 0:01:09]} 36. Kh2 {[%emt 0:00:47]} g6 {[%emt 0:00:22]} 37. Kg1 {[%emt 0:00:10]} Bf3 {[%emt 0:00:53]} 38. Kh2 {[%emt 0:02:39]} Qa6 {[%emt 0:00:01]} 39. Kg1 {[%emt 0:01:31]} Qe2 {[%emt 0:00:22]} 40. Ra1 {[%emt 0:01:46]} Bxa1 {[%emt 0:00:36]} 41. Qxa1 {[%emt 0:00:05]} Qxe3 {[%emt 0:00:17]} 0-1

[Event "Krakow Championship-C 2022"]
[Site "Krakow"]
[Date "2022.06.28"]
[Round "5.8"]
[White "Kieca, Aleksandra"]
[Black "Jokel, Marcin"]
[Result "1/2-1/2"]
[ECO "D05"]
[WhiteElo "1524"]
[BlackElo "1413"]
[Annotator "NA RC"]
[PlyCount "50"]
[EventDate "2022.06.25"]
[EventType "swiss"]
[EventCountry "POL"]
[SourceTitle "playchess.com"]
[Source "ChessBase"]
[SourceQuality "1"]
[TimeControl "5400+30"]

1. d4 {[%emt 0:00:04]} d5 {[%emt 0:00:07]} 2. Nf3 {[%emt 0:00:14]} Nf6 {[%emt 0:00:20]} 3. e3 {[%emt 0:00:06]} e6 {[%emt 0:00:33]} 4. Bd3 {[%emt 0:00:06]} c5 {[%emt 0:01:04]} 5. b3 {[%emt 0:00:49]} b6 {[%emt 0:00:52]} 6. Bb2 {[%emt 0:00:23]} Nbd7 {[%emt 0:01:35]} 7. Nbd2 {[%emt 0:00:49]} Bd6 {[%emt 0:02:12]} 8. Ne5 {[%emt 0:03:18]} O-O {[%emt 0:05:28]} 9. O-O {[%emt 0:00:17]} Bb7 {[%emt 0:00:47]} 10. f4 {[%emt 0:02:23]} Ne4 {[%emt 0:02:35]} 11. Bxe4 {[%emt 0:07:33]} dxe4 {[%emt 0:00:33]} 12. Ndc4 {[%emt 0:04:18]} Bc7 {[%emt 0:05:26]} 13. Qg4 {[%emt 0:06:08]} f5 {[%emt 0:10:04]} 14. Qe2 {[%emt 0:02:03]} Nxe5 {[%emt 0:03:42]} 15. Nxe5 {[%emt 0:01:28]} Bxe5 {[%emt 0:00:30]} 16. dxe5 {[%emt 0:00:59]} Qe7 {[%emt 0:04:18]} 17. Rfd1 {[%emt 0:02:59]} Rfd8 {[%emt 0:03:23]} 18. Qe1 {[%emt 0:07:13]} Rac8 {[%emt 0:05:30]} 19. Rac1 {[%emt 0:08:02]} Rc7 {[%emt 0:04:11]} 20. Rxd8+ {[%emt 0:12:50]} Qxd8 {[%emt 0:00:22]} 21. Rd1 {[%emt 0:00:12]} Rd7 {[%emt 0:00:16]} 22. Rxd7 {[%emt 0:01:50]} Qxd7 {[%emt 0:00:05]} 23. Bc3 {[%emt 0:01:05]} h6 {[%emt 0:06:16]} 24. Qd2 {[%emt 0:01:51]} Qxd2 {[%emt 0:00:42]} 25. Bxd2 {[%emt 0:00:05]} Bc8 1/2-1/2

[Event "Krakow Championship-C 2022"]
[Site "Krakow"]
[Date "2022.06.29"]
[Round "6.1"]
[White "Andriienko, Artom"]
[Black "Chmielewski, Miroslaw"]
[Result "1-0"]
[ECO "A46"]
[WhiteElo "1588"]
[BlackElo "1571"]
[Annotator "NA RC"]
[PlyCount "99"]
[EventDate "2022.06.25"]
[EventType "swiss"]
[EventCountry "POL"]
[SourceTitle "playchess.com"]
[Source "ChessBase"]
[SourceQuality "1"]
[TimeControl "5400+30"]

1. d4 {[%emt 0:00:04]} Nf6 {[%emt 0:00:38]} 2. Nf3 {[%emt 0:00:08]} d6 {[%emt 0:03:22]} 3. g3 {[%emt 0:01:50]} Bf5 {[%emt 0:00:54]} 4. Bg2 {[%emt 0:00:15]} c6 {[%emt 0:00:34]} 5. O-O {[%emt 0:00:29]} Nbd7 {[%emt 0:07:20]} 6. c4 {[%emt 0:11:44]} e5 {[%emt 0:01:52]} 7. Nc3 {[%emt 0:02:21]} Be7 {[%emt 0:04:40]} 8. b3 {[%emt 0:13:04]} O-O {[%emt 0:01:00]} 9. Bb2 {[%emt 0:00:34]} Re8 {[%emt 0:04:44]} 10. Nh4 {[%emt 0:12:54]} Bg6 {[%emt 0:02:45]} 11. d5 {[%emt 0:01:01]} c5 {[%emt 0:02:57]} 12. e4 {[%emt 0:03:30]} Nf8 {[%emt 0:03:28]} 13. Qd3 {[%emt 0:01:53]} N6d7 {[%emt 0:03:59]} 14. Nxg6 {[%emt 0:03:51]} Nxg6 {[%emt 0:01:01]} 15. Rae1 {[%emt 0:04:24]} h6 {[%emt 0:15:11]} 16. Bh3 {[%emt 0:04:09]} Ndf8 {[%emt 0:01:59]} 17. Kh1 {[%emt 0:12:18]} Nh7 {[%emt 0:00:39]} 18. f4 {[%emt 0:03:30]} Bf6 {[%emt 0:01:59]} 19. Bf5 {[%emt 0:00:58]} Ngf8 {[%emt 0:01:22]} 20. Bxh7+ {[%emt 0:04:05]} Nxh7 {[%emt 0:00:15]} 21. f5 {[%emt 0:00:57]} Be7 {[%emt 0:02:03]} 22. Bc1 {[%emt 0:00:32]} Bg5 {[%emt 0:01:15]} 23. h4 {[%emt 0:01:34]} Bxc1 {[%emt 0:00:08]} 24. Rxc1 {[%emt 0:00:03]} Nf6 {[%emt 0:00:29]} 25. Qe2 {[%emt 0:00:37]} Nd7 {[%emt 0:00:27]} 26. Rf2 {[%emt 0:01:36]} a6 {[%emt 0:00:20]} 27. Rg1 {[%emt 0:00:25]} Qa5 {[%emt 0:02:07]} 28. Qd3 {[%emt 0:01:07]} b5 {[%emt 0:01:17]} 29. g4 {[%emt 0:00:42]} bxc4 {[%emt 0:01:50]} 30. bxc4 {[%emt 0:00:22]} g6 {[%emt 0:05:29]} 31. Qe3 {[%emt 0:02:41]} Kg7 {[%emt 0:00:27]} 32. g5 {[%emt 0:01:52]} h5 {[%emt 0:00:30]} 33. fxg6 {[%emt 0:00:55]} fxg6 {[%emt 0:00:11]} 34. Rgf1 {[%emt 0:00:34]} Rf8 {[%emt 0:00:22]} 35. Qh3 {[%emt 0:00:07]} Qd8 {[%emt 0:00:49]} 36. Qe6 {[%emt 0:00:17]} Rxf2 {[%emt 0:08:20]} 37. Rxf2 {[%emt 0:00:04]} Nf8 {[%emt 0:00:12]} 38. Qf7+ {[%emt 0:00:57]} Kh8 {[%emt 0:00:11]} 39. Rb2 {[%emt 0:04:02]} Rb8 {[%emt 0:03:45]} 40. Rb3 {[%emt 0:00:15]} Rxb3 {[%emt 0:01:45]} 41. axb3 {[%emt 0:00:02]} Qc8 {[%emt 0:00:19]} 42. Kh2 {[%emt 0:00:46]} Qb8 {[%emt 0:02:06]} 43. Ne2 {[%emt 0:00:24]} a5 {[%emt 0:00:39]} 44. Ng3 {[%emt 0:00:24]} Qc8 {[%emt 0:00:52]} 45. Nf5 gxf5 {[%emt 0:00:18]} 46. exf5 {[%emt 0:00:33]} Nh7 {[%emt 0:03:00]} 47. f6 {[%emt 0:01:34]} Nxf6 {[%emt 0:02:08]} 48. gxf6 {[%emt 0:00:36]} Qg8 {[%emt 0:00:29]} 49. Qxh5+ {[%emt 0:00:03]} Qh7 {[%emt 0:00:10]} 50. Qe8+ {[%emt 0:00:03]} 1-0

[Event "Krakow Championship-C 2022"]
[Site "Krakow"]
[Date "2022.06.29"]
[Round "6.2"]
[White "Kuznik, Kamil"]
[Black "Piddubna, Bozhena"]
[Result "0-1"]
[ECO "C45"]
[WhiteElo "1456"]
[BlackElo "1534"]
[Annotator "NA RC"]
[PlyCount "96"]
[EventDate "2022.06.25"]
[EventType "swiss"]
[EventCountry "POL"]
[SourceTitle "playchess.com"]
[Source "ChessBase"]
[SourceQuality "1"]
[TimeControl "5400+30"]

1. e4 {[%emt 0:00:02]} e5 {[%emt 0:04:03]} 2. Nf3 {[%emt 0:00:14]} Nc6 {[%emt 0:00:15]} 3. d4 {[%emt 0:00:07]} exd4 {[%emt 0:00:06]} 4. Nxd4 {[%emt 0:00:05]} Nf6 {[%emt 0:00:23]} 5. Nxc6 {[%emt 0:00:08]} bxc6 {[%emt 0:00:08]} 6. e5 {[%emt 0:00:07]} Qe7 {[%emt 0:00:12]} 7. Qe2 {[%emt 0:00:05]} Nd5 {[%emt 0:00:10]} 8. c4 {[%emt 0:00:06]} Nb6 {[%emt 0:00:05]} 9. b3 {[%emt 0:01:17]} a5 {[%emt 0:00:09]} 10. Ba3 {[%emt 0:00:28]} Qg5 {[%emt 0:00:07]} 11. Bxf8 {[%emt 0:00:49]} Qc1+ {[%emt 0:00:09]} 12. Qd1 {[%emt 0:00:09]} Qxd1+ {[%emt 0:00:10]} 13. Kxd1 {[%emt 0:00:05]} Rxf8 {[%emt 0:00:08]} 14. Bd3 {[%emt 0:00:59]} Bb7 {[%emt 0:01:34]} 15. Re1 {[%emt 0:00:46]} O-O-O {[%emt 0:00:34]} 16. Nc3 {[%emt 0:01:32]} f6 {[%emt 0:06:43]} 17. e6 {[%emt 0:01:22]} dxe6 {[%emt 0:00:14]} 18. Kc2 {[%emt 0:00:42]} e5 {[%emt 0:00:31]} 19. Bxh7 {[%emt 0:00:32]} Kb8 {[%emt 0:01:02]} 20. Bf5 {[%emt 0:01:25]} Nc8 {[%emt 0:06:23]} 21. Rad1 {[%emt 0:06:50]} Nd6 {[%emt 0:03:55]} 22. Bd3 {[%emt 0:08:05]} Rh8 {[%emt 0:05:30]} 23. h3 {[%emt 0:02:31]} g6 {[%emt 0:01:34]} 24. Na4 {[%emt 0:11:17]} Bc8 {[%emt 0:04:40]} 25. Nc5 {[%emt 0:05:53]} Nf5 {[%emt 0:01:45]} 26. Kc3 {[%emt 0:04:57]} Rdg8 {[%emt 0:03:12]} 27. b4 {[%emt 0:05:48]} axb4+ {[%emt 0:00:26]} 28. Kxb4 {[%emt 0:00:23]} Nd4 {[%emt 0:00:25]} 29. Kc3 {[%emt 0:00:48]} Ka7 {[%emt 0:12:05]} 30. Rb1 {[%emt 0:01:13]} Ne6 {[%emt 0:00:44]} 31. Nxe6 {[%emt 0:01:21]} Bxe6 {[%emt 0:00:09]} 32. Rb3 {[%emt 0:02:52]} Rd8 {[%emt 0:01:49]} 33. Bxg6 {[%emt 0:02:31]} Rd4 {[%emt 0:01:23]} 34. Bd3 {[%emt 0:10:32]} Rhh4 {[%emt 0:02:52]} 35. g3 Rxh3 {[%emt 0:01:17]} 36. Bf1 {[%emt 0:04:10]} Rh1 {[%emt 0:02:37]} 37. Reb1 {[%emt 0:01:11]} Bc8 {[%emt 0:00:29]} 38. Ra3+ {[%emt 0:01:33]} Ba6 {[%emt 0:00:08]} 39. c5 {[%emt 0:00:05]} Rxf1 {[%emt 0:01:04]} 40. Rxf1 {[%emt 0:00:13]} Rd3+ {[%emt 0:00:14]} 41. Kb2 {[%emt 0:04:02]} Rxa3 {[%emt 0:00:15]} 42. Kxa3 {[%emt 0:00:12]} Bxf1 {[%emt 0:00:07]} 43. Kb4 {[%emt 0:00:07]} Be2 {[%emt 0:00:34]} 44. Kc3 {[%emt 0:00:27]} Ka6 {[%emt 0:00:23]} 45. Kd2 {[%emt 0:00:12]} Bc4 {[%emt 0:01:12]} 46. Ke3 {[%emt 0:00:39]} Bxa2 {[%emt 0:00:34]} 47. f4 {[%emt 0:00:07]} exf4+ {[%emt 0:00:11]} 48. Kxf4 {[%emt 0:00:04]} Be6 {[%emt 0:00:09]} 0-1